Cogmind - Beta 17.1 @@@ ROGUE MODE // 2026.09.09 @ 06:08:23 Player: MrFartsburg Result: Destroyed by L-31 Rogue with Katana Performance ------------- Evolutions (1) 500 Regions Visited (3) 600 Robots Destroyed (6) 30 Value Destroyed (120) 120 Prototype IDs (0) 0 Alien Tech Used (0) 0 Bonus (0) 0 TOTAL SCORE: 1250 Bonus ------- None Cogmind --------- Core Integrity 0/400 Matter 250/300 Energy 100/100 System Corruption 0% Temperature Cool (0) Movement Core (200) Ox3 Location -9/Materials Parts ------- > --- POWER (2) -------- (None) > --- PROPULSION (2) --- (None) > --- UTILITY (3) ------ Medium Storage Unit > --- WEAPON (2) ------- (None) > --- INVENTORY (10) --- (None) Peak State ------------ > --- POWER ------------ Light Ion Engine > --- PROPULSION ------- Light Treads Light Treads > --- UTILITY ---------- Sensor Array > --- WEAPON ----------- EM Pulse Gun Grenade Launcher > --- INVENTORY -------- Small Laser [Rating: 6] Favorites ----------- Power Light Ion Engine Engine Light Ion Engine Propulsion Light Treads Treads Light Treads Leg Aluminum Leg Utility Medium Storage Unit Device Sensor Array Storage Medium Storage Unit Weapon Grenade Launcher Energy Gun EM Pulse Gun Launcher Grenade Launcher Build | -11 -10 -10 -9 ------- Run | Yrd Mat Min Mat Slots Evolved 2 | . . . 2 Power 1 | . . . 1 Propulsion . | . . . . Utility 1 | . . . 1 Weapon . | . . . . Parts Attached 10 | 5 3 . 2 Power 2 | 1 . . 1 Engine 2 | 1 . . 1 Core . | . . . . Reactor . | . . . . Propulsion 3 | 2 . . 1 Treads 2 | 2 . . . Leg 1 | . . . 1 Wheel . | . . . . Hover . | . . . . Flight . | . . . . Utility 2 | . 2 . . Device 1 | . 1 . . Storage 1 | . 1 . . Processor . | . . . . Hackware . | . . . . Protection . | . . . . Artifact . | . . . . Weapon 3 | 2 1 . . Energy Gun 2 | 2 . . . Energy Cannon . | . . . . Ballistic Gun . | . . . . Ballistic Cannon . | . . . . Launcher 1 | . 1 . . Special Weapon . | . . . . Impact Weapon . | . . . . Slashing Weapon . | . . . . Piercing Weapon . | . . . . Special Melee Weapon . | . . . . Unidentified Prototypes . | . . . . Parts Lost 9 | . 1 2 6 Power 2 | . . . 2 Propulsion 3 | . . 1 2 Utility 1 | . 1 . . Weapon 3 | . . 1 2 Highest Loss Streak 6 | . 1 2 6 To Critical Strikes . | . . . . Average Backups . | . . 1 . Power . | . . . . Propulsion . | . . . . Utility . | . . . . Weapon . | . . 1 . Tool/Special . | . . . . Unused Backups . | . . . . Power . | . . . . Propulsion . | . . . . Utility . | . . . . Weapon . | . . . . Tool/Special . | . . . . Average Slot Usage (%) 64 | . 75 80 44 Engine 12 | . 14 14 9 Treads 19 | . 28 28 6 Leg 1 | . . . 2 Storage 7 | . 4 14 11 Energy Gun 12 | . 16 9 7 Launcher 10 | . 11 14 7 Peak Build Rating 6 | 5 6 6 5 Average Rating 4 | 3 5 5 3 On Entrance 3 | . 5 6 4 Avg Prop Armor Cover (%) . | . . . . Naked Turns . | . . . . Heaviest Build 18 | 6 18 18 17 Greatest Support 40 | 40 40 40 20 Greatest Overweight (x) 5 | . . . 5 Average Overweight (x) . | . . . . Largest Inventory Capacity 10 | 5 10 10 10 Average Capacity 7 | 5 6 10 10 Most Carried 1 | . 1 1 . Average Carried . | . . 1 . Final Capacity 10 | 5 10 10 10 Final Carried 1 | . 1 1 . Class Distribution -------------------- 100% | Mutant Dominant Class ---------------- Mutant | -10/Materials Mutant | -10/Mines Mutant | -9/Materials Resources | -11 -10 -10 -9 ----------- Run | Yrd Mat Min Mat Matter Collected 300 | 242 48 . 10 Remotely . | . . . . Salvage Created 144 | . 113 . 31 Parts 8 | . 5 . 3 Haulers Intercepted 1 | . 1 . . Recyclers Shooed . | . . . . Parts Field Recycled . | . . . . Retrieved Matter . | . . . . Parts Self-Destructed . | . . . . Prevented . | . . . . Parts Restored . | . . . . Kills | -11 -10 -10 -9 ------- Run | Yrd Mat Min Mat Combat Hostiles Destroyed 5 | . 4 . 1 Guns 2 | . 1 . 1 AOE 3 | . 3 . . Classes Destroyed 3 | . 3 . . Hauler 1 | . 1 . . Swarmer 3 | . 3 . . Grunt 2 | . 1 . 1 Best Kill Streak 3 | . 3 . 1 Combat Bots Only 3 | . 3 . 1 Max Kills in Single Turn 2 | . 2 . 1 Gunslinging . | . . . . Exploded 2 | . 2 . . Melee . | . . . . Uniques/NPCs Destroyed . | . . . . Combat | -11 -10 -10 -9 -------- Run | Yrd Mat Min Mat Hostile Shots Fired 81 | . 14 21 46 Missed 19 | . 7 3 9 Hits 62 | . 7 18 37 Melee 12 | . . . 12 Projectile 50 | . 7 18 25 Critical Strikes 4 | . . 1 3 Damage Taken 1160 | . 83 291 786 Core 465 | . . 34 431 Absorbed by Shields . | . . . . Core Remaining (%) 93 | 100 . 86 . Volleys Fired 9 | . 4 2 3 Largest 2 | . 2 2 2 Hottest 70 | . 70 70 70 Shots Fired 18 | . 8 4 6 Gun 9 | . 4 2 3 Cannon . | . . . . Launcher 9 | . 4 2 3 Special . | . . . . Kinetic . | . . . . Thermal 3 | . . . 3 Explosive 9 | . 4 2 3 Electromagnetic 6 | . 4 2 . Robot Hit Streak 6 | . 5 3 6 Robot Miss Streak 1 | . 1 1 . Penetration Max . | . . . . Secondary Targets . | . . . . Shots Hit Robots 12 | . 6 3 3 Core Hits 12 | . 5 2 5 Critical Kills . | . . . . Critical Parts Destroyed . | . . . . Critical Strikes . | . . . . Melee Attacks . | . . . . Impact . | . . . . Slashing . | . . . . Piercing . | . . . . Sneak Attacks . | . . . . Combat Hostiles . | . . . . Follow-up Attacks . | . . . . Damage Inflicted 502 | 1 260 144 97 Guns 78 | . 42 13 23 Cannons . | . . . . Explosions 416 | . 211 131 74 Melee . | . . . . Ramming 8 | 1 7 . . Kinetic . | . . . . Thermal 23 | . . . 23 Explosive 416 | . 211 131 74 Electromagnetic 55 | . 42 13 . Impact . | . . . . Slashing . | . . . . Piercing . | . . . . Highest Corruption . | . . . . Average Corruption . | . . . . Corruption Purged . | . . . . Corruption Blocked . | . . . . Overload Shots . | . . . . Overflow Damage 11 | . 11 . . Projectiles . | . . . . Explosions 11 | . 11 . . Melee . | . . . . Knockbacks . | . . . . Impact . | . . . . Kinetic . | . . . . Secondary . | . . . . Self-Inflicted Damage 85 | . 31 47 7 Shots 4 | . 1 2 1 Rammed 4 | 1 3 . . Targets Rammed 4 | 1 3 . . Kicked . | . . . . Crushed . | . . . . Highest Temperature 57 | . 18 57 6 Average Temperature 13 | . 8 26 5 Received Heat Transfer 258 | . . 153 105 Siege Activations . | . . . . Martial Activations . | . . . . Shielding Activations . | . . . . Robots Disrupted . | . . . . Combat Hostiles . | . . . . Robots Corrupted . | . . . . Combat Hostiles . | . . . . Parts Fried . | . . . . Impact Corruptions . | . . . . Robots Melted . | . . . . Combat Hostiles . | . . . . Parts Melted . | . . . . Heat Transferred 50 | . . . 50 Parts Sabotaged . | . . . . Parts Stolen . | . . . . Parts Stripped . | . . . . Power Chain Reactions . | . . . . Alert | -11 -10 -10 -9 ------- Run | Yrd Mat Min Mat Maximum Alert Level . | . . . . Low Security (%) 100 | 100 100 100 100 Level 1 . | . . . . Level 2 . | . . . . Level 3 . | . . . . Level 4 . | . . . . Level 5 . | . . . . High Security . | . . . . Max Security . | . . . . Peak Influence 88 | . 88 53 24 Initial 30 | . . 30 8 Average 9 | . 13 43 3 Influence Increases 184 | . 127 23 34 Destroy 0b10 Robot/C 100 | . 80 . 20 Destroy 0b10 Robot/NC 5 | . 5 . . Destroy Leader 12 | . 12 . . Disable Machine 30 | . 15 15 . Destroy Structure 37 | . 15 8 14 Influence Decreases 184 | . 49 78 57 Entered New Map 63 | . . 48 15 Time Decay 67 | . 39 10 18 Lost Part 54 | . 10 20 24 Squads Dispatched . | . . . . Investigation . | . . . . Extermination . | . . . . Reinforcement . | . . . . Assault . | . . . . Garrison . | . . . . Intercept . | . . . . Searches Triggered . | . . . . Construction Impeded . | . . . . Haulers Reinforced . | . . . . Active Scanning Responses . | . . . . Cargo Convoy Interrupts . | . . . . Stealth | -11 -10 -10 -9 --------- Run | Yrd Mat Min Mat Distress Signals 1 | . 1 . . Communications Jammed . | . . . . Distress Signals . | . . . . Times Spotted 12 | . 6 2 4 Peak Tracking Total 3 | . 3 2 3 Tactical Retreats . | . . . . Traps | -11 -10 -10 -9 ------- Run | Yrd Mat Min Mat Traps Triggered . | . . . . Indirectly . | . . . . Trap Hack Attempts . | . . . . Triggered . | . . . . Disarmed . | . . . . Reprogrammed . | . . . . Reused . | . . . . Traps Extracted . | . . . . Installed . | . . . . Triggered . | . . . . Machines | -11 -10 -10 -9 ---------- Run | Yrd Mat Min Mat Machines Disabled 2 | . 1 1 . Max in Single Turn 1 | . 1 1 . Machines Repaired . | . . . . Machines Dismantled . | . . . . Machines Sabotaged . | . . . . Overloaded Fab Kills . | . . . . Hacking | -11 -10 -10 -9 --------- Run | Yrd Mat Min Mat Machines Accessed 3 | . 2 . 1 Terminals 1 | . 1 . . Fabricators . | . . . . Repair Stations . | . . . . Recycling Units 1 | . 1 . . Scanalyzers 1 | . . . 1 Garrison Access . | . . . . Total Hacks 7 | . 4 . 3 Successful 4 | . 3 . 1 Failed 3 | . 1 . 2 Catastrophic . | . . . . Database Lockouts . | . . . . Manual . | . . . . Terminals 2 | . 2 . . Fabricators . | . . . . Repair Stations . | . . . . Recycling Units 2 | . 2 . . Scanalyzers 3 | . . . 3 Garrison Access . | . . . . Terminal Hacks 2 | . 2 . . Record 1 | . 1 . . Reinforcement Status 1 | . 1 . . Fabricator Hacks . | . . . . Repair Station Hacks . | . . . . Recycling Unit Hacks 1 | . 1 . . Report Inventory 1 | . 1 . . Scanalyzer 1 | . . . 1 Retrieve Study 1 | . . . 1 Garrison Access Hacks . | . . . . Unauthorized Hacks . | . . . . Terminals . | . . . . Fabricators . | . . . . Repair Stations . | . . . . Recycling Units . | . . . . Scanalyzers . | . . . . Garrison Access . | . . . . Data Cores Recovered . | . . . . Used . | . . . . Hacking Detections 2 | . 1 . 1 Full Trace Events . | . . . . Feedback Events . | . . . . Feedback Blocked . | . . . . Robot Schematics Acquired . | . . . . Robots Built . | . . . . Authchips . | . . . . Time . | . . . . Total Robot Build Rating . | . . . . Part Schematics Acquired . | . . . . Parts Built . | . . . . Authchips . | . . . . Time . | . . . . Total Part Build Rating . | . . . . Part Studies Acquired 1 | . . . 1 Parts Repaired . | . . . . Time . | . . . . Parts Recycled . | . . . . Recycled Matter . | . . . . Retrieved Matter . | . . . . Retrieved Components . | . . . . Parts Scanalyzed . | . . . . Part Schematics Acquired . | . . . . Parts Damaged . | . . . . Bothacking | -11 -10 -10 -9 ------------ Run | Yrd Mat Min Mat Used RIF Installer . | . . . . Robots Hacked . | . . . . Non-combat . | . . . . Combat . | . . . . Robot Hacks Applied . | . . . . Relay Couplers Released . | . . . . Fabnet Peak Effective % . | . . . . Robots Rewired . | . . . . Allies Hacked . | . . . . Hacks Repelled . | . . . . Allies | -11 -10 -10 -9 -------- Run | Yrd Mat Min Mat Total Allies . | . . . . Largest Group . | . . . . Highest-Rated Group . | . . . . Highest-Rated Ally . | . . . . Total Orders . | . . . . Ally Attacks . | . . . . Total Damage . | . . . . Kills . | . . . . Allies Corrupted . | . . . . Allies Melted . | . . . . Intel | -11 -10 -10 -9 ------- Run | Yrd Mat Min Mat Active Infowar (turns) 16 | . 16 . . Sensors 16 | . 16 . . Robot Analysis Total . | . . . . Derelict Logs Recovered . | . . . . Drone Launches . | . . . . Drone Recoveries . | . . . . Exploration | -11 -10 -10 -9 ------------- Run | Yrd Mat Min Mat Turns Passed 470 | 64 228 24 154 Spaces Moved 248 | 29 128 12 79 Core 15 | 1 . . 14 Treads 217 | 28 128 12 49 Legs 16 | . . . 16 Wheels . | . . . . Hover . | . . . . Flight . | . . . . Fastest Speed 50 | 50 160 160 160 Average Speed 165 | 156 160 160 178 Slowest Speed 300 | 160 160 160 300 Overloaded Moves . | . . . . Propulsion Burnouts . | . . . . Robots Hopped . | . . . . Potential Cave-ins . | . . . . Cave-ins Triggered . | . . . . Exploration Rate (%) 12 | 4 27 9 9 Regions Visited 3 Branch Regions 1 Pre-discovered Areas . | . . . . Known Exits Taken . | . . . . Unknown Exits Taken 3 | 1 1 1 . Scrap Searched . | . . . . Spaces Dug . | . . . . Terrain Destroyed 45 | . 19 13 13 Melee . | . . . . Projectile . | . . . . AOE 45 | . 19 13 13 Terrain Rammed . | . . . . Walls Destroyed . | . . . . Machines Disabled . | . . . . Actions | -11 -10 -10 -9 --------- Run | Yrd Mat Min Mat Total 283 | 45 140 13 85 Wait 13 | 11 2 . . Move 246 | 29 127 11 79 Hop . | . . . . Pick Up 1 | . 1 . . Fast Attach 9 | 5 2 . 2 Attach 1 | . . . 1 Detach . | . . . . Swap 1 | . 1 . . Drop . | . . . . Fire 9 | . 4 2 3 Melee . | . . . . Ram . | . . . . Kick . | . . . . Crush 3 | . 3 . . Escape Stasis . | . . . . Rewire . | . . . . Trap . | . . . . Miscellaneous . | . . . . Route ------- -11/Scrapyard -10/Materials -10/Mines -9/Materials History --------- Turn | Location | Event 19 | -11/Scrapyard | Discovered new exit (range 15) 65 | -11/Scrapyard | Entered Materials 280 | -10/Materials | Discovered new exit (range 9) 293 | -10/Materials | Entered Mines 293 | -10/Mines | Discovered new exit (range 13) 317 | -10/Mines | Build established: Mutant 317 | -10/Mines | Entered Materials 317 | -9/Materials | Evolved 2 slots: Power x1, Utility x1 424 | -9/Materials | Core integrity fell below 50% 454 | -9/Materials | Core integrity fell below 20% 471 | -9/Materials | Destroyed by L-31 Rogue with Katana Last Messages --------------- your current propulsion can efficiently support, which slows movement; see status page ('s') or the top of the parts list for the specific mass vs. support values. Critical hit (Burn: +37). Grenade Launcher+ destroyed. The unstable cave ceiling collapses. U-05 Engineer lays Concrete. Acquired Aluminum Leg. U-05 Engineer lays Concrete. Lgt. Ion Engine destroyed. U-05 Engineer builds a Wall. Acquired 10 matter. Acquired Ion Engine. Sml. Laser destroyed. U-05 Engineer builds a Wall. The unstable cave ceiling collapses. U-05 Engineer builds a Wall. Aluminum Leg destroyed. Ion Engine destroyed. Map ----- +----------------------------------------------------+ | | | | | | | | | | | | | | | | | | | | | | | | | | | | | | | | | ?????????????????????????????????????????????????? | | ?????????????????????????????????????????????????? | | ?????????????????????????????????????????????????? | | ???????????????????????????##########????????????? | | ???????????????????????????# #????????????? | | ???????????????????????????# """ #????????????? | | ???????????????????????????# """ #????????????? | | ??????????????????###+###### """ #????????????? | | ??????????? l/ #????????????? | | ??????????? ##@## """ ##???????????? | | ?????????????""" ???????# ## """ #???######### | | ????????????????????????# ## """ #????# # | | ????????????????????????# ## #????# # "" | | ????????????????????????# ######/#####???# # ""S | | ????????????????????????# #???# #???# + "" | | ????????????????????????# ##### #???# # | | ????????????????????????# ## #??## | | ????????????????????????#k## #??# | | ????????????????????????? ?# #??# ##### | | ????????????????????????? ?# #??# # ! | | ????????????????????????? ?### #??## | | ????????????????????????? ???# #### "" | | ????????????????????????? ???# ! "" | | ????????????????????????? ???# # "" | | ????????????????????????? ???# # | | ?????????????????????????????# ##### | | ?????????????????????????????############ #???? | | ?????????????????????????????????????? ## #???? | | ?????????????????????????????????????"" ## #???? | | ????????????????????????????????????""" ?# #???? | | ????????????????????????????????????""" ?# #???? | | ????????????????????????????????????? ?# #???? | | ?????????????????????????????????????+##? ???? | | ????????????????????????????????????????? #??? | +----------------------------------------------------+ Best States ------------- Heat Dissipation 28 Energy Generation 10 Energy Capacity 250 Matter Stores 300 Matter Capacity 300 Sight Range 16 Robot Scan Range 14 Terrain Scan Density 10 Evasion (%) 40 Recoil Reduction 2 Item Schematics ----------------- None Robot Schematics ------------------ None Fabricated ------------ Nothing Repaired ---------- Nothing Studied --------- Grenade Launcher | -9/Materials | Hacked Alien Tech Used ----------------- None Achievements -------------- None Challenges ------------ None Game ------ Seed TeslaHellfireCleaver Manual? 0 Play Time 00:07:53 Cumulative 38.2 hours Start 2026.09.09 @ 06:01:41 End 2026.09.09 @ 06:08:23 Sessions 1 Manual Loads 0 Difficulty Rogue Special Mode None Game No. 74 Rogue 74 Adventurer 0 Explorer 0 Win Type - Total 0 Types 0/0/0/0/0/0/0/0/0/0 Lore% 13 Gallery% 25 Achievement% 17 Wizard Run 0 Options --------- Layout 1 ASCII 0 Keyboard 0 Movement Numpad Keybinds 0 Fullscreen 1 Font 32/SmallcapsGlow Map View 50x35 Zoom Use 0% Tactical HUD 0 Map Filters NONE Filters NONE Steam 1 RUN: f2cb9677-1db4-4990-babc-f010b398be50